Cogmind - Beta 10.1 @@@ ROGUE MODE // 2020.10.27 @ 22:01:30 Player: Atherys Result: Destroyed by D-53 Grenadier with Mini Grenade Launcher Performance ------------- Evolutions (0) 0 Regions Visited (2) 400 Robots Destroyed (27) 135 Value Destroyed (140) 140 Prototype IDs (0) 0 Alien Tech Used (0) 0 Bonus (-45) -45 TOTAL SCORE: 630 Bonus ------- Friendly Fire -45 Cogmind --------- Core Integrity 0/250 Matter 232/300 Energy 30/100 System Corruption 0% Temperature Cool (5) Movement Walking (120) Location -10/Mines Parts ------- > --- POWER (1) -------- (None) > --- PROPULSION (2) --- Flexi-carbon Leg > --- UTILITY (2) ------ Small Storage Unit Weight Redist. System > --- WEAPON (2) ------- Beam Cannon Grenade Launcher > --- INVENTORY (6) ---- High-capacity Matter Pod (30) Improved Terrain Scanner Medium Laser Datajack Mining Laser Peak State ------------ > --- POWER ------------ Ion Engine > --- PROPULSION ------- Aluminum Leg Aluminum Leg > --- UTILITY ---------- Small Storage Unit Improved Terrain Scanner > --- WEAPON ----------- Maul Maul > --- INVENTORY -------- High-capacity Matter Pod Weight Redist. System ECM Suite Medium Laser Grenade Launcher Mining Laser [Rating: 10] Favorites ----------- Power Ion Engine Engine Ion Engine Propulsion Aluminum Leg Leg Aluminum Leg Wheel Wheel Utility Small Storage Unit Device Improved Terrain Scanner Storage Small Storage Unit Weapon Medium Laser Energy Gun Medium Laser Energy Cannon Beam Cannon Ballistic Gun Assault Rifle Launcher Grenade Launcher Special Weapon Mining Laser Impact Weapon Maul Build | -11 -10 -10 ------- Run | Scr Mat Min Slots Evolved . | . . . Power . | . . . Propulsion . | . . . Utility . | . . . Weapon . | . . . Parts Attached 22 | 7 12 3 Power 1 | 1 . . Engine 1 | 1 . . Core . | . . . Reactor . | . . . Propulsion 5 | 2 2 1 Treads . | . . . Leg 3 | 2 . 1 Wheel 2 | . 2 . Hover . | . . . Flight . | . . . Utility 3 | 2 1 . Device 2 | 1 1 . Storage 1 | 1 . . Processor . | . . . Hackware . | . . . Protection . | . . . Artifact . | . . . Weapon 13 | 2 9 2 Energy Gun 4 | 1 3 . Energy Cannon 1 | . . 1 Ballistic Gun 1 | 1 . . Ballistic Cannon . | . . . Launcher 2 | . 1 1 Special Weapon 3 | . 3 . Impact Weapon 2 | . 2 . Slashing Weapon . | . . . Piercing Weapon . | . . . Special Melee Weapon . | . . . Unidentified Prototypes . | . . . Parts Lost 4 | . . 4 Power 1 | . . 1 Propulsion 2 | . . 2 Utility . | . . . Weapon 1 | . . 1 Highest Loss Streak 4 | . . 4 Average Slot Usage (%) 97 | . 100 63 Engine 13 | . 14 3 Leg 18 | . 20 3 Wheel 7 | . 8 3 Device 14 | . 14 14 Storage 14 | . 14 14 Energy Gun 10 | . 11 3 Ballistic Gun 3 | . 3 . Launcher 3 | . 2 14 Special Weapon 7 | . 8 . Impact Weapon 2 | . 2 . Naked Turns . | . . . Heaviest Build 15 | 14 15 14 Greatest Support 26 | 20 26 26 Greatest Overweight (x) 4 | . 4 1 Average Overweight (x) . | . . . Largest Inventory Capacity 6 | 6 6 6 Average Capacity 5 | 5 6 6 Most Carried 6 | 1 6 6 Average Carried 3 | . 4 5 Final Capacity 6 | 6 6 6 Final Carried 6 | 1 6 5 Class Distribution -------------------- 76% | Mutant 23% | Scavenger-Mutant Dominant Class ---------------- Mutant | -10/Materials Mutant | -10/Mines Resources | -11 -10 -10 ----------- Run | Scr Mat Min Matter Collected 494 | 263 209 22 Remotely . | . . . Salvage Created 380 | 115 233 32 Parts 29 | 6 23 . Haulers Intercepted 1 | . 1 . Recyclers Shooed 2 | 1 1 . Parts Field Recycled . | . . . Retrieved Matter . | . . . Parts Self-Destructed . | . . . Prevented . | . . . Kills | -11 -10 -10 ------- Run | Scr Mat Min Combat Hostiles Destroyed 18 | . 4 14 Guns 1 | . 1 . Cannons 1 | . . 1 AOE 16 | . 3 13 Classes Destroyed 10 | 2 7 1 Worker 1 | . 1 . Builder 1 | . 1 . Tunneler 2 | 2 . . Hauler 1 | . 1 . Recycler 2 | 1 1 . Operator 1 | . 1 . Watcher 1 | . 1 . Swarmer 3 | . 3 . Grunt 1 | . 1 . Assembled 14 | . . 14 Best Kill Streak 14 | 2 4 14 Combat Bots Only 14 | . 3 14 Max Kills in Single Turn 4 | 1 3 4 Gunslinging . | . . . Exploded 4 | . 2 4 Melee . | . . . Uniques/NPCs Destroyed . | . . . Combat | -11 -10 -10 -------- Run | Scr Mat Min Damage Taken 664 | . 50 614 Core 266 | . 7 259 Absorbed by Shields . | . . . Core Remaining (%) 100 | 100 . . Volleys Fired 81 | 8 65 8 Largest 2 | 2 2 2 Hottest 140 | 70 140 90 Shots Fired 91 | 16 66 9 Gun 65 | 16 49 . Cannon 2 | . . 2 Launcher 9 | . 2 7 Special 15 | . 15 . Kinetic 14 | 8 6 . Thermal 58 | 8 48 2 Explosive 9 | . 2 7 Electromagnetic 10 | . 10 . Robot Hit Streak 5 | 4 5 2 Robot Miss Streak 3 | 2 3 2 Penetration Max . | . . . Secondary Targets . | . . . Shots Hit Robots 47 | 10 34 3 Core Hits 55 | 4 15 36 Critical Hits . | . . . Critical Kills . | . . . Critical Parts Destroyed . | . . . Melee Attacks . | . . . Impact . | . . . Slashing . | . . . Piercing . | . . . Sneak Attacks . | . . . Combat Hostiles . | . . . Follow-up Attacks . | . . . Damage Inflicted 1618 | 129 629 860 Guns 592 | 129 463 . Cannons 18 | . . 18 Explosions 984 | . 142 842 Melee . | . . . Ramming . | . . . Kinetic 114 | 68 46 . Thermal 390 | 61 311 18 Explosive 984 | . 142 842 Electromagnetic 130 | . 130 . Impact . | . . . Slashing . | . . . Piercing . | . . . Highest Corruption . | . . . Average Corruption . | . . . Corruption Purged . | . . . Overload Shots . | . . . Overflow Damage 23 | . . 23 Projectiles . | . . . Explosions 23 | . . 23 Melee . | . . . Knockbacks . | . . . Impact . | . . . Kinetic . | . . . Secondary . | . . . Self-Inflicted Damage 43 | . . 43 Shots 2 | . . 2 Rammed . | . . . Targets Rammed . | . . . Kicked . | . . . Crushed . | . . . Highest Temperature 120 | 45 120 10 Average Temperature 28 | 18 31 6 Received Heat Transfer 44 | . 24 20 Siege Activations . | . . . Robots Corrupted . | . . . Combat Hostiles . | . . . Parts Fried . | . . . Impact Corruptions . | . . . Robots Melted . | . . . Combat Hostiles . | . . . Parts Melted 1 | . 1 . Heat Transferred 1123 | 185 901 37 Parts Sabotaged . | . . . Parts Stolen . | . . . Parts Stripped . | . . . Power Chain Reactions . | . . . Missiles Intercepted . | . . . Alert | -11 -10 -10 ------- Run | Scr Mat Min Peak Influence 203 | 15 203 14 Initial 14 | . 9 14 Average 97 | 5 117 2 Maximum Alert Level 1 | . 1 . Low Security (%) 99 | 100 99 100 Level 1 . | . . . Level 2 . | . . . Level 3 . | . . . Level 4 . | . . . Level 5 . | . . . High Security . | . . . Max Security . | . . . Squads Dispatched 1 | . 1 . Investigation . | . . . Extermination . | . . . Reinforcement 1 | . 1 . Assault . | . . . Garrison . | . . . Intercept . | . . . Construction Impeded . | . . . Haulers Reinforced . | . . . Stealth | -11 -10 -10 --------- Run | Scr Mat Min Distress Signals 1 | . 1 . Communications Jammed . | . . . Distress Signals . | . . . Times Spotted 32 | . 10 22 Peak Tracking Total 20 | . 4 20 Tactical Retreats 1 | . . 1 Traps | -11 -10 -10 ------- Run | Scr Mat Min Traps Triggered . | . . . Indirectly . | . . . Trap Hack Attempts . | . . . Triggered . | . . . Disarmed . | . . . Reprogrammed . | . . . Reused . | . . . Traps Extracted . | . . . Installed . | . . . Triggered . | . . . Machines | -11 -10 -10 ---------- Run | Scr Mat Min Machines Disabled 1 | . 1 . Max in Single Turn 1 | . 1 . Machines Sabotaged . | . . . Garrisons Compromised . | . . . Overloaded Fab Kills . | . . . Fab Network Shutdowns . | . . . Hacking | -11 -10 -10 --------- Run | Scr Mat Min Machines Accessed 3 | . 3 . Terminals 3 | . 3 . Fabricators . | . . . Repair Stations . | . . . Recycling Units . | . . . Scanalyzers . | . . . Garrison Access . | . . . Total Hacks 11 | . 11 . Successful 6 | . 6 . Failed 5 | . 5 . Catastrophic . | . . . Database Lockouts . | . . . Manual 11 | . 11 . Terminals 11 | . 11 . Fabricators . | . . . Repair Stations . | . . . Recycling Units . | . . . Scanalyzers . | . . . Garrison Access . | . . . Terminal Hacks . | . . . Fabricator Hacks . | . . . Repair Station Hacks . | . . . Recycling Unit Hacks . | . . . Scanalyzer . | . . . Garrison Access Hacks . | . . . Unauthorized Hacks 6 | . 6 . Terminals 6 | . 6 . Track 1 | . 1 . Assimilate 2 | . 2 . Botnet 2 | . 2 . Operators 1 | . 1 . Fabricators . | . . . Repair Stations . | . . . Recycling Units . | . . . Scanalyzers . | . . . Garrison Access . | . . . Data Cores Recovered 1 | . 1 . Used . | . . . Hacking Detections 2 | . 2 . Full Trace Events . | . . . Feedback Events . | . . . Feedback Blocked . | . . . Robot Schematics Acquired . | . . . Robots Built . | . . . Matter . | . . . Time . | . . . Total Robot Build Rating . | . . . Part Schematics Acquired . | . . . Parts Built . | . . . Matter . | . . . Time . | . . . Total Part Build Rating . | . . . Parts Repaired . | . . . Time . | . . . Parts Recycled . | . . . Recycled Matter . | . . . Retrieved Matter . | . . . Retrieved Components . | . . . Parts Scanalyzed . | . . . Part Schematics Acquired . | . . . Parts Damaged . | . . . Bothacking | -11 -10 -10 ------------ Run | Scr Mat Min Used RIF Installer . | . . . Robots Hacked . | . . . Non-combat . | . . . Combat . | . . . Robot Hacks Applied . | . . . Relay Couplers Released . | . . . Robots Rewired . | . . . Allies Hacked . | . . . Hacks Repelled . | . . . Allies | -11 -10 -10 -------- Run | Scr Mat Min Total Allies . | . . . Largest Group . | . . . Highest-Rated Group . | . . . Highest-Rated Ally . | . . . Total Orders . | . . . Ally Attacks . | . . . Total Damage . | . . . Kills . | . . . Allies Corrupted . | . . . Allies Melted . | . . . Intel | -11 -10 -10 ------- Run | Scr Mat Min Robot Analysis Total . | . . . Derelict Logs Recovered . | . . . Drone Launches . | . . . Drone Recoveries . | . . . Exploration | -11 -10 -10 ------------- Run | Scr Mat Min Turns Passed 680 | 81 560 39 Spaces Moved 401 | 48 334 19 Core 25 | 16 1 8 Treads . | . . . Legs 242 | 32 203 7 Wheels 134 | . 130 4 Hover . | . . . Flight . | . . . Fastest Speed 50 | 50 80 50 Average Speed 103 | 96 104 97 Slowest Speed 250 | 120 250 120 Overloaded Moves . | . . . Propulsion Burnouts . | . . . Robots Hopped . | . . . Cave-ins Triggered . | . . . Exploration Rate (%) 24 | 4 53 15 Regions Visited 2 Branch Regions 1 Pre-discovered Areas . | . . . Known Exits Taken . | . . . Unknown Exits Taken 2 | 1 1 . Scrap Searched . | . . . Spaces Dug 12 | . 12 . Terrain Destroyed 63 | . 24 39 Melee . | . . . Projectile 12 | . 12 . AOE 51 | . 12 39 Terrain Rammed . | . . . Walls Destroyed . | . . . Machines Disabled . | . . . Actions | -11 -10 -10 --------- Run | Scr Mat Min Total 539 | 63 445 31 Wait 18 | . 18 . Move 399 | 47 333 19 Hop . | . . . Pick Up 12 | 1 10 1 Fast Attach 9 | 7 2 . Attach 3 | . 1 2 Detach . | . . . Swap 10 | . 9 1 Drop 7 | . 7 . Fire 81 | 8 65 8 Melee . | . . . Ram . | . . . Kick . | . . . Crush . | . . . Escape Stasis . | . . . Rewire . | . . . Trap . | . . . Miscellaneous . | . . . Route ------- -11/Scrapyard -10/Materials (discovered 3 exits: [*Mat] / [*Min x2]) -10/Mines History --------- Turn | Location | Event 3 | -11/Scrapyard | Discovered new exit (range 14) 82 | -11/Scrapyard | Entered Materials 144 | -10/Materials | Discovered new exit (range 13) 297 | -10/Materials | Discovered new exit (range 8) 312 | -10/Materials | Build established: Mutant 608 | -10/Materials | Discovered new exit (range 9) 642 | -10/Materials | Entered Mines 643 | -10/Mines | Assembled infested the area 648 | -10/Mines | Assisted by a Guerilla fighting off Assembled 655 | -10/Mines | Core integrity fell below 50% 656 | -10/Mines | Core integrity fell below 20% 681 | -10/Mines | Destroyed by D-53 Grenadier with Mini Grenade Launcher Last Messages --------------- 00656_ as-43915 destroyed. 00656_ as-07480 destroyed. 00656_ as-15504 destroyed. 00656_ as-29453 destroyed. 00657_ QV-UOA(h) destroyed. 00658_ as-47853 destroyed. 00658_ as-30685 destroyed. 00658_ as-27657 destroyed. 00661_ as-80881 destroyed. 00667_ Acquired 19 matter. 00668_ The unstable cave ceiling collapses. 00669_ Acquired Flexi-carbon Leg. 00673_ The unstable cave ceiling collapses. 00675_ YI-UF0 mumbles something. 00676_ Acquired 3 matter. 00679_ The unstable cave ceiling collapses. 00679_ C-30 ARC bursts open, deploying its payload. 00679_ D-53 Grenadier unfolds itself. 00679_ U-05 Engineer destroyed. 00680_ YI-UF0 mumbles something. Map ----- +----------------------------------------------------+ | ?????????????????????????????????????????????????? | | ?????????????????????????????????????????????????? | | ?????????????????????????????????????????????????? | | ?????????????????????????????????????????????????? | | ?????????????????????????????????????????????????? | | ?????????????????????????????????????????????????? | | ?????????????????????????????????????????????????? | | ?????????????????????????????????????????????????? | | ?????????????????????????????????????????????????? | | ????????????????????????###??????????????????????? | | ????????????????????????# #?????????????????????? | | ????????????????????????# #????????????????????? | | ????????????????????????# ????????????????????? | | ????????????????????????# #????????????????????? | | ???????????????????????## ##???????????????????? | | ??????????????????????## ##??????????????????? | | ??????????????????????? ##?????????????????? | | ??????????????????????? < ###???????????????? | | ?????????????????###???? % ????????????????? | | ????????????????## ??## ?????????????????? | | ????????????????# ?# % #??????????????????? | | ???????????????## ## ##?????????????????? | | ??????????# ???# #?????????????????? | | ?????????## ### # #??????????????????? | | ???????? ## ##?????????????????? | | ??????????# # @ #?????????????????? | | ????????????????# #?????????????????? | | ????????????????# ###?????????????????? | | ????????????????# #??????????????????? | | ??????????????# ###??????????????????? | | ??????????????# ###????????????????????? | | ??????????????# ??????????????????????? | | ??????????????# g ??????????????????????? | | ??????????????# ??????????????????????? | | ?????????????# = ??????????????????????? | | ?????????????# | d ??????????????????????? | | ?????????????# % ??????????????????????? | | ?????????????## d ??????????????????????? | | ??????????????## ??????????????????????? | | ???????????????### #?????????????????????? | | ?????????????????## #??????????????????????? | | ??????????????????# #???????????????????????? | | ?????????????????? #???????????????????????? | | ?????????????????? ##???????????????????????? | | ?????????????????# ##????????????????????????? | | ?????????????????## ##??????????????????????????? | | ??????????????????###????????????????????????????? | | ?????????????????????????????????????????????????? | | ?????????????????????????????????????????????????? | | ?????????????????????????????????????????????????? | +----------------------------------------------------+ Best States ------------- Heat Dissipation 25 Energy Generation 10 Energy Capacity 250 Matter Stores 300 Matter Capacity 300 Sight Range 16 Terrain Scan Range 16 Terrain Scan Density 10 Additional Mass Support 6 Evasion (%) 50 Item Schematics ----------------- None Robot Schematics ------------------ None Fabricated ------------ Nothing Alien Tech Used ----------------- None Achievements -------------- Hunted Challenges ------------ None Game ------ Seed SubatomicHeatInterpreter Manual? 0 Play Time 00:12:49 Cumulative 15.7 hours Start 2020.10.27 @ 21:49:09 End 2020.10.27 @ 22:01:30 Sessions 1 Manual Loads 0 Difficulty Rogue Special Mode None Game No. 25 Rogue 25 Adventurer 0 Explorer 0 Win Type - Total 0 Types 0/0/0/0/0/0/0/0/0 Lore% 19 Gallery% 20 Achievement% 19 Wizard Run 0 Options --------- ASCII 0 Keyboard 0 Movement Mouse Keybinds 0 Fullscreen 2 Font 24/Smallcaps Map View 76x50 Tactical HUD 1 Map Filters NONE Filters NONE Steam X RUN: f3476efa-abef-4078-9616-1d0fbd22a5ab